bitfinex/quotes_ETHUSD_20251009
["timestamp","ask_amount","ask_price","bid_price","bid_amount"]
[1760011247999,0.002,4374.3,4374.1,0.6336]
[1760011248199,0.002,4374.3,4374.2,0.7472]
[1760011249639,0.002,4374.3,4373.8,0.68638812]
[1760011249950,0.002,4374.3,4373.6,0.96786875]
[1760011249951,2.28634139,4373.8,4373.4,0.1136]
[1760011250110,3.72528283,4374.2,4372.0,0.001]
[1760011250111,2.28639947,4373.7,4373.1,1.347]
[1760011250311,2.28646133,4373.6,4373.1,1.347]
[1760011250727,2.39999804,4373.7,4373.1,1.347]
[1760011250909,0.1136,4373.7,4373.2,0.65646655]
[1760011251223,2.3998295,4374.1,4373.4,0.6336]
[1760011251401,2.28630009,4373.9,4373.4,0.6336]
[1760011251944,2.28625261,4374.0,4373.4,0.6336]
[1760011252501,2.28629512,4373.9,4373.4,0.6336]
[1760011252999,0.1136,4374.1,4373.4,0.6336]
[1760011253240,2.28624751,4374.0,4373.4,0.6336]
[1760011253899,2.39981906,4374.1,4373.4,0.6336]
[1760011254105,0.1136,4374.1,4373.4,0.6336]
[1760011254556,0.1136,4374.1,4373.5,0.22866498]
[1760011255152,2.3998018,4374.1,4373.5,0.22866498]
[1760011255722,0.002,4374.3,4373.6,3.0116]
[1760011255916,0.002,4374.3,4373.9,0.6336]
[1760011256334,2.28809073,4374.3,4373.9,0.6336]
[1760011256521,0.002,4374.3,4373.9,0.6336]
[1760011257157,0.002,4374.3,4374.0,0.02286236]
[1760011257323,0.002,4374.3,4374.0,0.78900252]
[1760011257685,2.28616663,4374.2,4374.0,0.02286236]
[1760011258007,0.002,4374.3,4374.0,0.02286236]
[1760011258169,0.002,4374.3,4374.1,0.6336]
[1760011258321,0.002,4374.3,4374.2,0.65646132]
[1760011258736,0.002,4374.3,4374.1,0.6336]
[1760011260127,0.002,4374.3,4374.0,0.1136]
[1760011260468,2.28633208,4373.9,4373.5,2.378]
[1760011260664,2.28642993,4373.7,4373.4,0.105]
[1760011261164,2.28642993,4373.7,4373.5,0.6336]
[1760011261660,2.28630601,4373.9,4373.5,0.6336]
[1760011262243,2.28637692,4373.8,4373.5,0.6336]
[1760011263150,0.4635,4374.2,4373.3,0.001]
[1760011263353,0.002,4374.3,4373.3,0.001]
[1760011263354,2.28644594,4373.6,4373.3,0.001]
[1760011263540,0.4635,4373.5,4373.3,0.001]
[1760011263742,2.2865505,4373.4,4373.3,0.001]
[1760011264248,2.7500505,4373.4,4373.3,0.001]
[1760011265288,0.4635,4373.4,4373.3,0.001]
[1760011265531,2.7500505,4373.4,4373.3,0.001]
[1760011266367,3.25370136,4373.4,4373.3,0.001]
[1760011267450,0.4635,4373.8,4373.3,0.001]
[1760011267685,4.20648964,4373.6,4373.3,0.001]
[1760011267982,0.4635,4374.1,4373.3,0.001]
[1760011267983,2.28613232,4374.2,4373.4,0.2058]
[1760011268146,2.28629138,4373.9,4373.4,0.2058]
[1760011268542,2.28624751,4374.0,4373.3,0.65746602]
[1760011268745,4.70079404,4374.3,4373.3,0.65746602]
[1760011268746,0.4926636,4374.2,4373.4,2.28650593]
[1760011268978,0.002,4374.3,4373.6,0.6336]
[1760011269182,0.002,4374.3,4373.7,4.73686393]
[1760011269183,2.2881224,4374.3,4373.7,4.73686393]
[1760011269377,2.28613289,4374.2,4373.7,4.714]
[1760011269590,0.0012,4374.3,4373.7,7.092]
[1760011269896,2.28613367,4374.2,4373.7,7.092]
[1760011270389,2.39973367,4374.2,4373.7,7.092]
[1760011270598,2.39973367,4374.2,4373.8,0.02286341]
[1760011270753,0.1136,4374.2,4373.8,0.02286341]
[1760011271453,2.39973862,4374.2,4373.8,0.02286341]
[1760011271682,0.1136,4374.2,4373.8,0.02286341]
[1760011272293,2.39973664,4374.2,4373.8,0.02286341]
[1760011272895,0.1136,4374.2,4373.8,0.02286341]
[1760011275457,0.0012,4374.3,4373.8,1.51263577]
[1760011275654,2.28728228,4374.3,4373.8,1.62623577]
[1760011275858,2.28614144,4374.2,4373.8,1.39757236]
[1760011276077,2.28728618,4374.3,4373.8,1.39757236]
[1760011276383,2.286143,4374.2,4373.8,1.39757236]
[1760011276887,2.28728359,4374.3,4373.8,1.39757236]
[1760011277054,2.28728569,4374.3,4373.8,1.39757236]
[1760011277387,2.28617046,4374.2,4373.8,1.39757236]
[1760011277684,2.28613232,4374.2,4373.8,0.7472]
[1760011277876,2.71453232,4374.2,4373.8,0.7472]
[1760011278984,0.0012,4374.3,4373.8,0.7472]
[1760011279184,2.28623685,4374.0,4373.9,6.447]
[1760011279483,2.71463685,4374.0,4373.9,6.447]
[1760011279874,2.39973248,4374.2,4373.9,6.447]
[1760011280079,0.1136,4374.2,4373.9,6.447]
[1760011280491,2.39974484,4374.2,4373.9,6.447]
[1760011280788,0.1136,4374.2,4374.0,0.02286236]
[1760011281169,2.28618458,4374.1,4374.0,0.02286236]
[1760011281890,2.28618458,4374.1,4373.9,6.447]
[1760011282104,2.28623685,4374.0,4373.9,6.447]
[1760011282671,2.71463685,4374.0,4373.6,0.6336]
[1760011282875,2.71463685,4374.0,4373.9,6.447]
[1760011283461,2.71463685,4374.0,4373.5,0.1136]
[1760011283462,3.22640201,4374.0,4372.9,2.378]
[1760011283661,2.5017505,4373.4,4373.2,6.447]
[1760011284202,2.9301505,4373.4,4372.8,0.1136]
[1760011284371,2.9301505,4373.4,4372.3,2.378]
[1760011284704,2.9301505,4373.4,4372.5,0.05]
[1760011287495,2.2865505,4373.4,4372.6,0.65646968]
[1760011287796,2.7149505,4373.4,4372.6,0.65646968]
[1760011288181,2.7149505,4373.4,4372.6,0.6336]
[1760011290202,2.7149505,4373.4,4372.7,0.02286916]
[1760011290701,2.2865505,4373.4,4372.7,0.02286916]
[1760011291067,2.2865505,4373.4,4372.6,0.6336]
[1760011291068,2.2365505,4373.4,4372.6,2.92055296]
[1760011291391,2.2365505,4373.4,4372.6,0.6336]
[1760011291597,2.2365505,4373.4,4372.6,2.92053165]
[1760011291898,2.3501505,4373.4,4372.7,0.02286916]
[1760011292199,2.7785505,4373.4,4372.7,0.02286916]
[1760011292379,2.7777505,4373.4,4372.7,0.02286916]
[1760011292699,0.1136,4373.4,4372.7,0.02286916]
[1760011292898,0.002,4374.2,4372.7,0.02286916]
[1760011292899,2.28635288,4373.8,4373.3,0.8918]
[1760011293074,0.1136,4373.9,4373.4,0.8622655]
[1760011293887,0.1136,4373.9,4373.4,0.6564655]
[1760011294199,2.39989948,4373.9,4373.4,0.8622655]
[1760011294566,2.2863458,4373.8,4373.4,0.8622655]
[1760011294791,2.2863458,4373.8,4373.4,0.6564655]
[1760011295006,0.002,4374.2,4373.4,1.35215815]
[1760011295173,2.28813885,4374.2,4373.8,0.6336]
[1760011295497,2.28813885,4374.2,4373.9,0.02286289]
[1760011295498,0.002,4374.2,4373.9,0.02286289]
[1760011297194,2.28813452,4374.2,4373.9,0.02286289]
[1760011298801,0.002,4374.2,4373.9,0.02286289]
[1760011299509,2.28621272,4374.1,4373.8,0.6336]
[1760011299925,2.28814765,4374.2,4373.8,0.6336]
[1760011300230,0.002,4374.2,4374.0,2.28623685]
[1760011300388,0.002,4374.2,4374.1,12.04851639]
[1760011300721,0.002,4374.2,4374.1,12.02565455]
[1760011306337,0.002,4374.2,4374.1,42.02565455]
[1760011306514,0.002,4374.2,4374.1,28.17850955]
[1760011306838,0.002,4374.2,4374.1,23.54985455]
[1760011307012,0.0012,4374.3,4374.1,23.54985455]
[1760011307221,0.0012,4374.3,4374.2,17.28671609]
[1760011307222,1e-08,4374.3,4374.2,17.28671609]
[1760011307524,1e-08,4374.3,4374.2,17.00658777]
[1760011310221,1e-08,4374.3,4374.2,17.12018777]
[1760011310422,1e-08,4374.3,4374.2,7.41090277]
[1760011310631,1e-08,4374.3,4374.2,34.93730977]
[1760011310832,1e-08,4374.3,4374.2,30.68802977]
[1760011311424,1e-08,4374.3,4374.2,7.41090277]
[1760011311731,1e-08,4374.8,4374.7,28.72302603]
[1760011311955,1e-08,4374.8,4374.7,51.22679648]
[1760011312264,1e-08,4374.8,4374.7,51.65971894]
[1760011312446,1e-08,4374.8,4374.7,31.57343748]
[1760011312758,1e-08,4374.8,4374.7,31.68791592]
[1760011315545,4.24377062,4375.6,4375.5,2.91905309]
[1760011315743,4.24377062,4375.6,4375.5,14.4101653]
[1760011315943,4.24377062,4375.6,4375.5,14.38731077]
[1760011319359,4.24377062,4375.6,4375.5,44.38731077]
[1760011320231,0.002,4376.0,4375.9,2.91884417]
[1760011320433,0.002,4376.0,4375.9,11.30569661]
[1760011320632,0.002,4376.0,4375.9,12.86832543]
[1760011321897,0.002,4376.0,4375.9,4.50432543]
[1760011322037,0.002,4376.0,4375.9,21.90700679]
[1760011322230,0.002,4376.0,4375.5,0.52045768]
[1760011322464,0.002,4376.0,4374.3,2.28608005]
[1760011322781,0.002,4376.0,4375.5,0.6336]
[1760011322933,0.002,4376.0,4375.6,4.245]
[1760011323537,0.002,4376.0,4375.6,6.53037542]
[1760011323851,0.002,4376.0,4375.7,0.6336]
[1760011324266,0.002,4376.0,4375.7,2.285304]
[1760011324572,0.002,4376.0,4375.8,0.6336]
[1760011324749,0.002,4376.0,4375.9,7.0766]
[1760011325354,0.002,4376.0,4375.9,9.36184417]
[1760011325561,0.002,4376.0,4375.9,9.47544417]
[1760011325786,0.002,4376.0,4375.9,11.10414034]
[1760011326793,0.002,4376.0,4375.9,22.41754034]
[1760011328379,0.002,4376.0,4375.9,22.87454802]
[1760011328783,0.002,4376.0,4375.9,25.25354802]
[1760011330102,0.002,4376.0,4375.9,11.883]
[1760011330305,0.002,4376.0,4375.9,18.33]
[1760011331596,0.002,4376.0,4375.9,21.24884417]
[1760011331910,0.002,4376.0,4375.9,18.9636]
[1760011332079,0.002,4376.0,4375.9,21.24884417]
[1760011332285,0.002,4376.0,4375.9,18.9636]
[1760011333211,0.002,4376.0,4375.9,21.24884417]
[1760011333414,0.002,4376.0,4375.9,18.9636]
[1760011336969,0.002,4376.0,4375.9,19.0772]
[1760011338752,0.002,4376.0,4375.9,21.36244417]
[1760011339848,0.002,4376.0,4375.9,21.56824417]
[1760011340584,0.002,4376.5,4376.4,32.28498309]
[1760011340780,0.002,4377.5,4377.3,0.6336]
[1760011340947,0.002,4377.5,4377.4,25.266762]
[1760011341147,0.002,4379.3,4377.8,2.91785236]
[1760011341344,0.49409863,4379.3,4377.8,9.74711333]
[1760011341647,0.002,4379.3,4378.2,2.91764367]
[1760011341851,0.002,4379.3,4378.2,11.7654841]
[1760011342156,0.002,4379.3,4378.2,11.93484367]
[1760011345953,0.002,4379.3,4378.2,13.85484367]
[1760011347979,0.002,4379.3,4378.2,14.32070004]
[1760011348179,0.002,4379.3,4378.2,15.98118189]
[1760011348551,0.002,4379.3,4378.2,15.51532552]
[1760011349188,0.002,4379.3,4378.2,25.01432552]
[1760011349189,2.28547229,4379.3,4378.2,25.01432552]
[1760011349376,0.4361,4379.3,4378.2,24.82112552]
[1760011349694,0.4361,4379.3,4378.2,23.09332552]
[1760011350055,0.002,4379.3,4378.2,23.09332552]
[1760011350573,0.002,4379.3,4378.2,23.20692552]
[1760011350778,2.28548257,4379.3,4378.2,4.88392552]
[1760011350987,2.28548257,4379.3,4378.2,21.54644367]
[1760011351164,0.002,4379.3,4378.2,9.66844367]
[1760011351496,0.002,4379.3,4378.2,21.43284367]
[1760011351655,0.002,4379.3,4378.2,21.54644367]
[1760011356702,0.002,4379.3,4378.2,23.46644367]
[1760011356899,0.002,4379.3,4378.2,25.71821412]
[1760011357608,0.002,4379.3,4378.2,26.07563257]
[1760011357905,0.002,4378.8,4378.2,26.07563257]
[1760011358268,0.002,4378.8,4378.2,25.71821412]
[1760011360596,0.002,4378.8,4378.2,2.58984367]
[1760011360809,0.1136,4378.7,4378.2,2.375]
[1760011360984,2.71797778,4378.6,4378.2,8.818]
[1760011361188,0.4341,4378.6,4378.2,8.818]
[1760011361495,2.28389937,4378.5,4378.2,8.818]
[1760011361674,2.71795007,4378.6,4378.2,8.818]
[1760011362009,0.0012,4378.3,4378.2,8.818]
[1760011365325,0.0012,4378.3,4378.0,0.1136]
[1760011365529,0.0012,4378.3,4378.1,8.84284095]
[1760011365690,0.0012,4378.3,4378.1,8.82]
[1760011365891,0.0012,4378.3,4378.0,0.1136]
[1760011366090,0.71192392,4378.3,4378.1,8.82]
[1760011366291,0.0012,4378.3,4378.1,8.82]
[1760011366710,0.0012,4378.3,4378.0,0.1136]
[1760011366930,0.0012,4378.3,4378.1,8.82]
[1760011367232,0.0012,4378.3,4378.0,0.1136]
[1760011367233,0.4394,4378.3,4378.2,8.819]
[1760011367794,0.0012,4378.3,4378.2,8.819]
[1760011369924,0.0012,4378.3,4378.0,0.1136]
[1760011370130,0.27373302,4378.3,4378.0,0.1136]
[1760011370295,0.0012,4378.3,4378.1,0.875]
[1760011370495,0.0012,4378.3,4378.2,7.619]
[1760011371611,0.0012,4378.3,4378.0,0.1136]
[1760011372016,0.0012,4378.3,4378.1,6.686]
[1760011373033,0.0012,4378.3,4378.2,2.9404841]
[1760011373206,0.0012,4378.3,4378.2,0.65644043]
[1760011373740,0.0012,4378.3,4378.2,3.1326841]
[1760011374608,0.0012,4378.3,4378.2,0.84864043]
[1760011375036,0.0012,4378.3,4378.2,2.9404841]
[1760011376139,0.0012,4378.3,4378.2,0.6336]
[1760011376346,0.0012,4378.3,4378.2,2.91764367]
[1760011376515,0.0012,4378.3,4378.2,2.9404841]
[1760011376907,0.0012,4378.3,4378.2,11.9526841]
[1760011377106,0.0012,4378.3,4378.2,11.92984367]
[1760011377340,0.0012,4378.3,4378.2,12.53367442]
[1760011377538,0.0012,4378.3,4378.2,12.72587442]
[1760011380051,0.0012,4378.3,4378.2,5.82587442]
[1760011380215,0.0012,4378.3,4378.2,24.14687442]
[1760011381511,0.0012,4378.3,4378.2,2.375]
[1760011381716,0.0012,4378.3,4378.2,8.819]
[1760011382115,0.0012,4378.3,4378.0,0.001]
[1760011382317,0.4382,4378.2,4378.1,2.375]
[1760011382519,2.9947778,4378.2,4378.1,8.818]
[1760011383428,2.72224367,4378.2,4378.1,8.818]
[1760011384138,0.0012,4378.3,4378.1,8.818]
[1760011384538,0.0004,4378.3,4378.1,8.818]
[1760011385724,0.0004,4378.3,4378.0,0.001]
[1760011385937,2.28409584,4378.1,4378.0,0.001]
[1760011386188,5.14316979,4378.1,4378.0,0.001]
[1760011386349,5.14316979,4378.1,4377.5,0.001]
[1760011386350,2.28435672,4377.6,4377.5,0.001]
[1760011386668,2.28435672,4377.6,4377.5,1.985]
[1760011386869,2.72255672,4377.6,4377.5,1.985]
[1760011387671,2.72255672,4377.6,4377.5,0.001]
[1760011387672,5.1342052,4377.6,4377.5,0.001]
[1760011387879,5.89756414,4377.6,4377.5,0.001]
[1760011388545,5.8973459,4377.6,4377.5,0.001]
[1760011388749,5.40591566,4377.6,4377.5,0.001]
[1760011390676,4.20435672,4377.6,4377.5,0.001]
[1760011390981,0.50087395,4378.1,4377.5,0.001]
[1760011390982,0.4382,4378.0,4377.5,0.001]
[1760011391190,2.28426876,4377.8,4377.5,0.001]
[1760011391467,0.1136,4377.7,4377.5,0.001]
[1760011391660,0.5518,4377.7,4377.5,0.001]
[1760011391856,2.28435672,4377.6,4377.5,0.001]
[1760011393253,2.74345672,4377.6,4377.5,0.001]
[1760011393883,2.39793842,4377.7,4377.5,0.001]
[1760011394353,2.28407806,4378.2,4377.5,0.001]
[1760011394689,2.28421632,4377.9,4377.5,0.001]
[1760011394852,0.1136,4378.0,4377.5,0.001]
[1760011394853,2.39778599,4378.0,4377.5,0.001]
[1760011395058,2.28420463,4377.9,4377.5,0.001]
[1760011395663,2.28427549,4377.8,4377.5,0.001]
[1760011395863,2.28431997,4377.7,4377.5,0.001]
[1760011396188,2.74334392,4377.9,4377.5,0.001]
[1760011396383,2.74334392,4377.9,4377.5,4.231]
[1760011396762,2.28425771,4377.8,4377.5,4.231]
[1760011397106,0.002,4378.2,4377.6,0.65644356]
[1760011397298,0.002,4378.2,4377.9,2.28419849]
[1760011397457,0.002,4378.2,4378.1,0.6336]
[1760011397756,0.002,4378.2,4378.1,2.94053679]
[1760011397953,0.002,4378.2,4378.1,3.13373679]
[1760011398199,0.002,4378.2,4378.1,4.55812958]
[1760011398359,0.002,4378.2,4378.1,4.53528863]
[1760011403186,0.002,4378.2,4377.6,4.39754984]
[1760011403393,0.002,4378.2,4378.0,2.91773339]
[1760011403690,0.002,4378.2,4378.1,6.6576]
[1760011403891,0.002,4378.2,4378.1,8.94169584]
[1760011404281,0.002,4378.2,4378.1,9.13489584]
[1760011404481,0.002,4378.2,4378.1,11.227104]
[1760011407116,0.002,4378.2,4378.1,11.340704]
[1760011407611,0.0012,4378.2,4378.1,11.340704]
[1760011410644,0.002,4379.1,4378.1,41.340704]
[1760011410841,0.002,4379.2,4378.1,41.340704]
[1760011410842,1e-08,4379.2,4379.1,2.28357425]
[1760011411011,0.7273748,4382.3,4380.6,2.28279176]
[1760011411213,0.2369,4381.9,4380.8,0.6336]
[1760011411419,0.2369,4381.9,4380.9,0.02282635]
[1760011411764,2.28212337,4381.9,4381.0,6.437]
[1760011411915,0.2369,4382.3,4381.1,0.65642531]
[1760011412236,0.4591,4382.2,4381.1,0.6336]
[1760011412542,2.28210846,4382.0,4380.8,0.6336]
[1760011412747,3.03890446,4382.1,4381.0,0.6336]
[1760011412941,2.28216384,4381.9,4381.0,0.6336]
[1760011413244,2.28216108,4381.9,4381.1,0.02282531]
[1760011414154,2.28217461,4381.8,4381.1,0.02282531]
[1760011414660,2.28226334,4381.7,4381.1,0.02282531]
[1760011414841,0.75688818,4382.1,4381.1,0.02282531]
[1760011415043,0.4591,4382.1,4381.1,0.02282531]
[1760011415233,2.28206298,4382.0,4381.1,0.02282531]
[1760011415441,2.28206298,4382.0,4381.2,0.6336]
[1760011415633,2.28206298,4382.0,4381.3,6.49582427]
[1760011415837,2.28211779,4381.9,4381.3,6.473]
[1760011416043,2.78443592,4381.9,4381.3,6.473]
[1760011416762,0.50231813,4381.9,4381.3,6.473]
[1760011417126,2.28217598,4381.8,4381.3,6.473]
[1760011417327,2.78444319,4381.9,4381.3,6.473]
[1760011417528,2.78444319,4381.9,4381.4,8.846]
[1760011417757,2.78444319,4381.9,4381.5,6.471]
[1760011418056,2.78443921,4381.9,4381.5,6.471]
[1760011418458,0.4591,4382.1,4381.5,6.471]
[1760011418656,1.92,4382.2,4381.5,6.471]
[1760011418962,2.51885411,4382.3,4381.6,0.6336]
[1760011418963,2.97795211,4382.3,4381.6,0.6336]
[1760011419143,2.97795211,4382.3,4381.6,0.65642271]
[1760011419552,2.74105211,4382.3,4381.6,0.65642271]
[1760011419726,2.28184274,4382.5,4381.6,2.93868982]
[1760011419927,2.28180733,4382.5,4381.6,2.93868982]
[1760011420551,4.66080637,4382.7,4381.6,2.93868982]
[1760011420759,0.1136,4382.2,4381.6,0.65642271]
[1760011421256,0.1136,4382.2,4381.6,2.93866209]
[1760011421640,2.28181045,4382.5,4381.6,2.93866209]
[1760011421963,2.28124811,4383.6,4381.6,0.65642271]
[1760011422161,0.4591,4383.8,4382.0,0.6336]
[1760011422457,2.2815072,4383.1,4382.2,0.6336]
[1760011422663,2.2815072,4383.1,4382.4,0.6336]
[1760011423359,2.28155136,4383.0,4382.4,0.6336]
[1760011423580,2.74049818,4383.3,4382.4,0.6336]
[1760011423881,0.96127421,4383.3,4382.6,0.6336]
[1760011424070,0.4378,4383.2,4382.7,2.374]
[1760011424267,2.28159437,4382.9,4382.8,6.47]
[1760011424480,0.4378,4382.9,4381.9,0.6336]
[1760011424683,0.4378,4383.4,4382.2,2.28194907]
[1760011424968,2.28139727,4383.3,4382.4,0.6336]
[1760011425169,0.4378,4383.7,4382.6,0.6336]
[1760011425493,1.92,4383.7,4382.7,0.02281698]
[1760011425680,1.92,4383.5,4382.8,2.374]
[1760011425861,2.28142897,4383.3,4382.8,2.374]
[1760011426248,2.28134113,4383.4,4382.8,2.39681646]
[1760011426463,1.92,4383.5,4382.8,2.39681646]
[1760011427282,2.28138514,4383.4,4382.8,2.374]
[1760011427505,0.4308,4383.9,4382.9,0.6336]
[1760011427709,2.28124669,4383.6,4382.9,0.6336]
[1760011427987,2.28124669,4383.6,4382.4,0.1868]
[1760011427988,2.28137452,4383.4,4382.4,0.1868]
[1760011428210,0.6913124,4383.6,4383.0,2.374]
[1760011428211,2.28144931,4383.2,4383.0,2.374]
[1760011428351,2.28144931,4383.2,4383.1,0.181]
[1760011429396,2.2813921,4383.3,4383.1,0.181]
[1760011429807,2.28139559,4383.3,4383.1,0.181]
[1760011430009,2.28142017,4383.3,4383.1,0.181]
[1760011430689,2.28054496,4383.4,4383.1,0.181]
[1760011431104,0.6677,4384.2,4383.2,0.6336]
[1760011431271,0.002,4383.4,4383.3,0.02281386]
[1760011432290,0.002,4383.4,4383.2,0.6336]
[1760011432669,0.002,4383.4,4383.2,0.8204]
[1760011433072,0.002,4383.4,4383.2,0.6336]
[1760011433258,2.28138617,4383.3,4383.2,0.6336]
[1760011433660,2.28334649,4383.4,4383.2,0.6336]
[1760011434392,2.28138617,4383.3,4383.2,0.6336]
[1760011435586,2.28337326,4383.4,4383.2,0.6336]
[1760011436472,2.28138617,4383.3,4383.2,0.6336]
[1760011436868,3.16864792,4383.3,4381.9,0.1868]
[1760011437094,0.45646175,4383.3,4383.0,0.6336]
[1760011437295,2.28149026,4383.1,4383.0,0.6336]
[1760011437499,2.28154232,4383.0,4382.9,0.7472]
[1760011437803,2.28154232,4383.0,4382.9,9.5832]
[1760011437986,2.28149094,4383.1,4382.9,9.5832]
[1760011438362,2.28154232,4383.0,4382.9,0.7472]
[1760011438585,2.28154232,4383.0,4382.9,9.5832]
[1760011438819,2.28154232,4383.0,4382.9,0.1136]
[1760011439025,2.28154232,4383.0,4380.6,2.28275426]
[1760011439026,2.28159701,4382.9,4382.8,2.373]
[1760011439326,2.28159701,4382.9,4381.7,0.1868]
[1760011439327,2.28174794,4382.7,4382.6,0.6336]
[1760011439483,0.4308,4382.9,4382.6,9.4686]
[1760011439914,2.28164643,4382.8,4382.6,9.4686]
[1760011440133,0.1136,4383.2,4382.7,0.02281698]
[1760011440332,2.53463918,4383.7,4382.8,0.1868]
[1760011440532,0.49048548,4383.3,4382.8,0.1868]
[1760011440839,1.22902301,4384.3,4383.0,2.9151007]
[1760011440840,2.28311735,4383.9,4383.0,2.9151007]
[1760011441039,2.77157839,4383.8,4383.1,6.4868149]
[1760011441339,0.4904471,4383.7,4383.2,2.28143758]
[1760011441646,0.002,4383.9,4383.3,2.93780003]
[1760011441808,0.002,4383.9,4383.3,0.02281386]
[1760011442004,0.002,4383.9,4383.2,0.6336]
[1760011442204,0.002,4383.9,4383.3,2.49100003]
[1760011442547,0.002,4383.9,4383.3,9.0258]
[1760011442742,0.002,4383.9,4383.3,8.854]
[1760011442743,2.28119315,4383.7,4383.3,8.854]
[1760011443103,0.49034541,4383.8,4383.3,8.854]
[1760011443308,2.28114898,4383.8,4383.3,8.854]
[1760011443942,0.002,4383.9,4383.3,9.4876]
[1760011443943,2.28311113,4383.9,4383.3,9.4876]
[1760011444347,2.28113842,4383.8,4383.3,9.4876]
[1760011444842,2.28118067,4383.7,4383.3,9.4876]
[1760011445045,0.002,4383.9,4383.3,9.4876]
[1760011445424,2.28308315,4383.9,4383.3,9.4876]
[1760011445746,2.28113624,4383.8,4383.3,9.4876]
[1760011445909,0.002,4383.9,4383.3,0.6336]
[1760011445910,2.28123346,4383.6,4383.3,0.6336]
[1760011446111,1.15168168,4383.4,4383.3,3.434]
[1760011446343,1.15168168,4383.4,4382.7,2.373]
[1760011446344,2.28164897,4382.8,4382.7,2.373]
[1760011446652,3.2030073,4382.8,4382.7,8.852]
[1760011446944,0.92135833,4382.8,4382.7,8.852]
[1760011447152,3.20300476,4382.8,4382.7,8.852]
[1760011447312,3.20300476,4382.8,4382.0,9.493]
[1760011447313,2.28173543,4382.7,4382.0,9.493]
[1760011447519,2.28165326,4382.8,4382.2,0.6336]
[1760011447849,2.71233681,4383.1,4382.2,0.6336]
[1760011447850,2.28170415,4382.7,4382.2,0.6336]
[1760011448344,2.28164377,4382.9,4382.2,0.6336]
[1760011448542,2.77270211,4382.8,4381.9,0.6336]
[1760011448744,0.49105289,4382.7,4382.1,0.6336]
[1760011449042,2.28164643,4382.8,4382.5,0.001]
[1760011449242,0.4308,4383.1,4382.6,6.478]
[1760011449542,0.92204736,4383.0,4382.6,6.478]
[1760011449755,2.28169849,4382.7,4382.6,6.478]
[1760011449956,2.77294585,4382.7,4382.6,6.478]
[1760011450257,2.28175055,4382.6,4382.5,0.001]
[1760011450460,3.20379791,4382.6,4382.5,8.863]
[1760011450761,0.002,4383.5,4382.8,0.6336]
[1760011451070,0.002,4383.5,4383.1,0.6336]
[1760011451375,0.002,4383.5,4383.3,0.6336]
[1760011451539,0.002,4383.5,4383.3,7.1216]
[1760011451859,0.002,4383.5,4383.3,9.4946]
[1760011452158,0.002,4383.5,4383.3,0.6336]
[1760011452328,0.002,4383.5,4383.3,9.4946]
[1760011452856,0.002,4383.5,4383.3,11.77598617]
[1760011453761,0.0012,4383.4,4383.3,11.77598617]
[1760011453932,0.0012,4383.4,4382.5,0.001]
[1760011454133,2.28138617,4383.3,4382.6,2.381]
[1760011454338,2.28138617,4383.3,4382.7,0.6336]
[1760011454539,2.75948205,4383.3,4382.7,0.6336]
[1760011455059,0.47809588,4383.3,4382.7,2.91529419]
[1760011455228,0.0012,4383.4,4382.7,2.91529419]
[1760011455954,2.28254526,4383.4,4382.7,2.91529419]
[1760011456133,2.28254526,4383.4,4382.9,0.6336]
[1760011457455,2.281401,4383.3,4382.9,0.6336]
[1760011457657,0.0012,4383.4,4382.9,0.6336]
[1760011457959,0.4624,4383.3,4382.9,0.6336]
[1760011458126,2.74379037,4383.3,4382.9,0.6336]
[1760011458528,1.01438816,4383.3,4383.0,8.858]
[1760011458827,0.4624,4383.3,4383.0,8.858]
[1760011459179,0.4624,4383.2,4383.0,8.858]
[1760011459746,2.28165312,4382.8,4382.5,0.001]
[1760011459946,0.4624,4382.8,4382.6,6.484]
[1760011460147,2.74405472,4382.8,4382.6,8.857]
[1760011460678,0.4624,4382.8,4382.6,8.857]
[1760011461347,2.74405117,4382.8,4382.6,8.857]
[1760011461534,0.4624,4382.7,4382.6,8.857]
[1760011461949,2.3952282,4382.9,4382.6,8.857]
[1760011462149,2.8576282,4382.9,4382.7,8.856]
[1760011462845,2.28164643,4382.8,4382.7,8.856]
[1760011463372,2.74404643,4382.8,4382.7,8.856]
[1760011463576,2.28175055,4382.6,4382.5,0.001]
[1760011464077,3.23576675,4382.6,4382.5,0.001]
[1760011464434,2.74415055,4382.6,4382.5,0.001]
[1760011466118,4.66415055,4382.6,4382.5,0.001]
[1760011466299,5.15576675,4382.6,4382.5,0.001]
[1760011466504,6.01223104,4382.6,4382.5,0.001]
[1760011467287,5.52061484,4382.6,4382.5,0.001]
[1760011469640,0.4624,4383.3,4382.5,6.999]
[1760011469803,2.2816559,4382.8,4382.5,0.001]
[1760011470004,2.28175055,4382.6,4382.5,0.001]
[1760011470443,2.74415055,4382.6,4382.5,0.001]
[1760011470728,4.66415055,4382.6,4382.5,0.001]
[1760011470928,5.3587312,4382.6,4382.5,0.001]
[1760011471440,5.84922429,4382.6,4382.5,0.001]
[1760011474238,5.3587312,4382.6,4382.5,0.001]
[1760011476031,0.61331079,4383.2,4383.1,2.5536]
[1760011476349,0.0012,4383.4,4383.3,0.6336]
[1760011476539,0.0012,4383.4,4383.3,11.79180003]
[1760011476737,0.0004,4383.4,4383.3,11.76898617]
[1760011476931,0.0004,4383.4,4383.3,11.95578617]
[1760011477131,0.0004,4383.4,4383.3,13.57151129]
[1760011478752,0.0004,4383.4,4383.3,15.49151129]
[1760011482540,0.0004,4383.4,4383.3,24.98151129]
[1760011484160,0.0004,4383.4,4383.3,22.69912512]
[1760011484338,0.0004,4383.4,4383.3,24.98051129]
[1760011486060,0.0004,4383.4,4383.3,25.09411129]
[1760011489060,0.0004,4383.4,4383.3,4.28292512]